[Event "*** Titled Tuesday Blitz"]
[Site "Chess.com"]
[Date "2021.04.20"]
[Round "5"]
[White "BashirliSaadat"]
[Black "JiiHart"]
[Result "1/2-1/2"]
[WhiteElo "2179"]
[BlackElo "1992"]
[TimeControl "180+1"]
[EndTime "10:55:44 PDT"]
[Termination "Game drawn by repetition"]

1. e4 {[%clk 0:03:00.4]} 1... c5 {[%clk 0:02:58.5]} 2. Nf3 {[%clk 0:02:59.3]}
2... Nc6 {[%clk 0:02:58.4]} 3. Bb5 {[%clk 0:02:57.6]} 3... g6 {[%clk 0:02:58.2]}
4. O-O {[%clk 0:02:55.5]} 4... Bg7 {[%clk 0:02:57.9]} 5. Re1 {[%clk 0:02:51.6]}
5... Nf6 {[%clk 0:02:57.8]} 6. c3 {[%clk 0:02:49.9]} 6... O-O {[%clk 0:02:55.4]}
7. d4 {[%clk 0:02:48.3]} 7... cxd4 {[%clk 0:02:55]} 8. cxd4 {[%clk 0:02:49.2]}
8... d5 {[%clk 0:02:55.1]} 9. e5 {[%clk 0:02:46.7]} 9... Ne4 {[%clk 0:02:55.1]}
10. Bxc6 {[%clk 0:02:44.2]} 10... bxc6 {[%clk 0:02:54.2]} 11. Nbd2 {[%clk
0:02:44.3]} 11... Nxd2 {[%clk 0:02:52.9]} 12. Bxd2 {[%clk 0:02:45.2]} 12... Bg4
{[%clk 0:02:43.8]} 13. h3 {[%clk 0:02:42.4]} 13... Bxf3 {[%clk 0:02:43.2]} 14.
Qxf3 {[%clk 0:02:43.3]} 14... Qb6 {[%clk 0:02:18.6]} 15. Bc3 {[%clk 0:02:40.2]}
15... e6 {[%clk 0:02:11.5]} 16. Rac1 {[%clk 0:02:34.4]} 16... a5 {[%clk
0:02:09.6]} 17. Qe3 {[%clk 0:02:26.8]} 17... Rfc8 {[%clk 0:01:35.4]} 18. Qd2
{[%clk 0:02:22.1]} 18... Bf8 {[%clk 0:01:25.8]} 19. a3 {[%clk 0:02:17.2]} 19...
c5 {[%clk 0:01:21.4]} 20. dxc5 {[%clk 0:02:12.9]} 20... Bxc5 {[%clk 0:01:21.1]}
21. b4 {[%clk 0:02:10.5]} 21... axb4 {[%clk 0:01:18.9]} 22. axb4 {[%clk
0:02:11.4]} 22... Bf8 {[%clk 0:01:14]} 23. Bd4 {[%clk 0:02:09.6]} 23... Qb5
{[%clk 0:01:11.2]} 24. Rxc8 {[%clk 0:02:01.2]} 24... Rxc8 {[%clk 0:01:10.5]} 25.
Rb1 {[%clk 0:02:01.3]} 25... Rc4 {[%clk 0:00:59.5]} 26. Bc3 {[%clk 0:01:57.2]}
26... d4 {[%clk 0:00:46]} 27. Bxd4 {[%clk 0:01:52.3]} 27... Bxb4 {[%clk
0:00:34.5]} 28. Qe3 {[%clk 0:01:50]} 28... Qd5 {[%clk 0:00:27.6]} 29. Bb6 {[%clk
0:01:40.1]} 29... Qe4 {[%clk 0:00:20.1]} 30. Qh6 {[%clk 0:01:17]} 30... Bf8
{[%clk 0:00:16.5]} 31. Qg5 {[%clk 0:01:02.4]} 31... Rb4 {[%clk 0:00:15.3]} 32.
Rxb4 {[%clk 0:00:58.9]} 32... Qxb4 {[%clk 0:00:16.2]} 33. Be3 {[%clk 0:00:59.3]}
33... Qb1+ {[%clk 0:00:13.8]} 34. Kh2 {[%clk 0:00:59.4]} 34... Qf5 {[%clk
0:00:14.3]} 35. Qxf5 {[%clk 0:00:56.5]} 35... exf5 {[%clk 0:00:14.6]} 36. Kg3
{[%clk 0:00:56.7]} 36... Bb4 {[%clk 0:00:13.2]} 37. f4 {[%clk 0:00:56]} 37...
Kf8 {[%clk 0:00:13.2]} 38. Kf3 {[%clk 0:00:55.7]} 38... Ke7 {[%clk 0:00:13.3]}
39. g4 {[%clk 0:00:55.6]} 39... Ke6 {[%clk 0:00:14.2]} 40. Bd4 {[%clk 0:00:54]}
40... Be1 {[%clk 0:00:12.7]} 41. Bc5 {[%clk 0:00:51.4]} 41... Bd2 {[%clk
0:00:11.6]} 42. Bd6 {[%clk 0:00:50.1]} 42... Bc1 {[%clk 0:00:11.4]} 43. Bf8
{[%clk 0:00:48.9]} 43... Bd2 {[%clk 0:00:10.8]} 44. Bc5 {[%clk 0:00:48.5]} 44...
Bc1 {[%clk 0:00:10.8]} 45. g5 {[%clk 0:00:43.8]} 45... Kd5 {[%clk 0:00:07.4]}
46. Bd6 {[%clk 0:00:42.3]} 46... Bd2 {[%clk 0:00:07.2]} 47. h4 {[%clk
0:00:41.4]} 47... Bc1 {[%clk 0:00:07.3]} 48. Be7 {[%clk 0:00:40.2]} 48... Bd2
{[%clk 0:00:07]} 49. Bf6 {[%clk 0:00:39]} 49... Be1 {[%clk 0:00:06.9]} 50. Bg7
{[%clk 0:00:29.4]} 50... Bxh4 {[%clk 0:00:06.8]} 51. Bh6 {[%clk 0:00:28]} 51...
Be1 {[%clk 0:00:06.5]} 52. Ke3 {[%clk 0:00:27]} 52... Bb4 {[%clk 0:00:06.1]} 53.
Kf3 {[%clk 0:00:27]} 53... Ba3 {[%clk 0:00:06.2]} 54. Bg7 {[%clk 0:00:26.7]}
54... Bc1 {[%clk 0:00:06.1]} 55. Bf6 {[%clk 0:00:26.2]} 55... Bd2 {[%clk
0:00:06.2]} 56. Bg7 {[%clk 0:00:26]} 56... Bc1 {[%clk 0:00:06.5]} 57. Bh6 {[%clk
0:00:26]} 57... Bd2 {[%clk 0:00:06.9]} 58. Bf8 {[%clk 0:00:26.3]} 58... Bc1
{[%clk 0:00:07.4]} 59. Bh6 {[%clk 0:00:26.1]} 59... Bd2 {[%clk 0:00:07.7]} 60.
Bg7 {[%clk 0:00:26.4]} 60... Bc1 {[%clk 0:00:07.9]} 1/2-1/2

[Event "*** Titled Tuesday Blitz"]
[Site "Chess.com"]
[Date "2021.04.20"]
[Round "5"]
[White "Margency"]
[Black "Andreikka"]
[Result "0-1"]
[WhiteElo "2713"]
[BlackElo "2872"]
[TimeControl "180+1"]
[EndTime "10:55:46 PDT"]
[Termination "Andreikka won by resignation"]

1. e4 {[%clk 0:03:00.9]} 1... e5 {[%clk 0:02:59.2]} 2. Nf3 {[%clk 0:03:00.9]}
2... Nc6 {[%clk 0:02:59.4]} 3. Bc4 {[%clk 0:03:00.9]} 3... Bc5 {[%clk
0:02:58.9]} 4. d3 {[%clk 0:03:00.9]} 4... Nf6 {[%clk 0:02:58.5]} 5. O-O {[%clk
0:03:01.1]} 5... O-O {[%clk 0:02:57.6]} 6. a4 {[%clk 0:03:00.8]} 6... a5 {[%clk
0:02:56.8]} 7. Bg5 {[%clk 0:02:58.2]} 7... h6 {[%clk 0:02:54.1]} 8. Bh4 {[%clk
0:02:57.9]} 8... Be7 {[%clk 0:02:53.5]} 9. Nbd2 {[%clk 0:02:56.8]} 9... d6
{[%clk 0:02:53.5]} 10. c3 {[%clk 0:02:55.9]} 10... Kh8 {[%clk 0:02:45.4]} 11.
Re1 {[%clk 0:02:49.1]} 11... Nh5 {[%clk 0:02:37.3]} 12. Bxe7 {[%clk 0:02:46.5]}
12... Qxe7 {[%clk 0:02:35.3]} 13. d4 {[%clk 0:02:42.1]} 13... Nf4 {[%clk
0:02:34.3]} 14. Nf1 {[%clk 0:02:33.8]} 14... Qf6 {[%clk 0:02:26.4]} 15. Ne3
{[%clk 0:02:28.4]} 15... exd4 {[%clk 0:02:05.3]} 16. cxd4 {[%clk 0:02:22.2]}
16... Nb4 {[%clk 0:02:04.6]} 17. e5 {[%clk 0:02:16.6]} 17... Qg6 {[%clk
0:02:01.6]} 18. g3 {[%clk 0:02:05.1]} 18... Nfd3 {[%clk 0:01:59.7]} 19. Re2
{[%clk 0:01:42.2]} 19... dxe5 {[%clk 0:01:51.1]} 20. Nxe5 {[%clk 0:01:35.8]}
20... Nxe5 {[%clk 0:01:51]} 21. dxe5 {[%clk 0:01:35.8]} 21... Be6 {[%clk
0:01:44.1]} 22. b3 {[%clk 0:01:28.6]} 22... Rad8 {[%clk 0:01:21.6]} 23. Rd2
{[%clk 0:01:20.7]} 23... Rxd2 {[%clk 0:01:22]} 24. Qxd2 {[%clk 0:01:20.8]} 24...
Qe4 {[%clk 0:01:22.7]} 25. f4 {[%clk 0:01:15.8]} 25... Nc6 {[%clk 0:01:14.4]}
26. Rd1 {[%clk 0:01:07.9]} 26... Bxc4 {[%clk 0:01:09.4]} 27. bxc4 {[%clk
0:00:58.9]} 27... Rd8 {[%clk 0:01:08.1]} 28. Qc3 {[%clk 0:00:53.1]} 28... Rxd1+
{[%clk 0:01:06.1]} 29. Nxd1 {[%clk 0:00:53.1]} 29... Nd4 {[%clk 0:01:07]} 30.
Qe3 {[%clk 0:00:36.4]} 30... Qxe3+ {[%clk 0:00:44.2]} 31. Nxe3 {[%clk
0:00:36.2]} 31... Ne2+ {[%clk 0:00:45.1]} 32. Kf2 {[%clk 0:00:33.6]} 32... Nc3
{[%clk 0:00:46]} 33. Nd5 {[%clk 0:00:33.3]} 33... Nxa4 {[%clk 0:00:46.2]} 34.
Nxc7 {[%clk 0:00:33.4]} 34... Nb6 {[%clk 0:00:41.6]} 35. c5 {[%clk 0:00:26.7]}
35... Nd7 {[%clk 0:00:37.6]} 36. e6 {[%clk 0:00:25.8]} 36... fxe6 {[%clk
0:00:38.1]} 37. Nxe6 {[%clk 0:00:26]} 37... a4 {[%clk 0:00:37.3]} 38. Ke3 {[%clk
0:00:19.8]} 38... a3 {[%clk 0:00:37.6]} 39. Nd4 {[%clk 0:00:19.6]} 39... Nxc5
{[%clk 0:00:37.5]} 40. Nc2 {[%clk 0:00:19.7]} 40... a2 {[%clk 0:00:38]} 41. Na1
{[%clk 0:00:19.5]} 41... b5 {[%clk 0:00:34.8]} 42. Kd4 {[%clk 0:00:19.5]} 42...
Na4 {[%clk 0:00:35.4]} 43. Kd3 {[%clk 0:00:18.2]} 43... Kh7 {[%clk 0:00:34.5]}
44. Kc2 {[%clk 0:00:18.7]} 44... Kg6 {[%clk 0:00:35.1]} 45. Kb3 {[%clk
0:00:19.3]} 45... Kf5 {[%clk 0:00:35.1]} 46. Kxa2 {[%clk 0:00:18.9]} 46... Kg4
{[%clk 0:00:35.4]} 47. Nc2 {[%clk 0:00:18.1]} 47... Kh3 {[%clk 0:00:35.3]} 48.
Ne3 {[%clk 0:00:18.7]} 48... Nc5 {[%clk 0:00:30.5]} 49. Nf5 {[%clk 0:00:18]}
49... Ne6 {[%clk 0:00:31.1]} 50. Kb3 {[%clk 0:00:16.9]} 50... Kxh2 {[%clk
0:00:31.4]} 51. Kb4 {[%clk 0:00:17.2]} 51... Kh3 {[%clk 0:00:31.7]} 52. Kxb5
{[%clk 0:00:17.4]} 52... Kg4 {[%clk 0:00:32.2]} 53. Nd6 {[%clk 0:00:16.7]} 53...
Kxg3 {[%clk 0:00:11.9]} 54. f5 {[%clk 0:00:16.9]} 54... Ng5 {[%clk 0:00:12.4]}
55. Ne8 {[%clk 0:00:15.4]} 55... h5 {[%clk 0:00:12.8]} 56. Nxg7 {[%clk
0:00:15.9]} 56... h4 {[%clk 0:00:13.2]} 57. f6 {[%clk 0:00:16.5]} 57... h3
{[%clk 0:00:13.1]} 58. Nh5+ {[%clk 0:00:15.1]} 58... Kf3 {[%clk 0:00:12.9]} 0-1

[Event "*** Titled Tuesday Blitz"]
[Site "Chess.com"]
[Date "2021.04.20"]
[Round "5"]
[White "DrMamaliga"]
[Black "Fraler15"]
[Result "1-0"]
[WhiteElo "2358"]
[BlackElo "2207"]
[TimeControl "180+1"]
[EndTime "10:55:46 PDT"]
[Termination "DrMamaliga won on time"]

1. b3 {[%clk 0:02:39.5]} 1... e5 {[%clk 0:02:59.3]} 2. Bb2 {[%clk 0:02:40.4]}
2... d6 {[%clk 0:02:59.6]} 3. e3 {[%clk 0:02:38.9]} 3... Nf6 {[%clk 0:02:59.5]}
4. d4 {[%clk 0:02:39.4]} 4... exd4 {[%clk 0:02:58.5]} 5. exd4 {[%clk 0:02:40.3]}
5... d5 {[%clk 0:02:58.7]} 6. Bd3 {[%clk 0:02:40.6]} 6... Be7 {[%clk 0:02:59.3]}
7. Ne2 {[%clk 0:02:41.1]} 7... O-O {[%clk 0:02:59.9]} 8. O-O {[%clk 0:02:41.7]}
8... c6 {[%clk 0:03:00.4]} 9. c4 {[%clk 0:02:42.1]} 9... Bg4 {[%clk 0:02:56.4]}
10. Nbc3 {[%clk 0:02:42.3]} 10... Re8 {[%clk 0:02:54]} 11. h3 {[%clk 0:02:42.7]}
11... Bh5 {[%clk 0:02:53.4]} 12. Qd2 {[%clk 0:02:40.9]} 12... Nbd7 {[%clk
0:02:39.1]} 13. Rae1 {[%clk 0:02:38.8]} 13... Bd6 {[%clk 0:02:39]} 14. Nf4
{[%clk 0:02:35.3]} 14... Bg6 {[%clk 0:02:34.8]} 15. Bxg6 {[%clk 0:02:32.6]}
15... hxg6 {[%clk 0:02:35.7]} 16. cxd5 {[%clk 0:02:33]} 16... Qc7 {[%clk
0:02:31.8]} 17. Nd3 {[%clk 0:02:21]} 17... Nxd5 {[%clk 0:02:31]} 18. Nxd5 {[%clk
0:02:16.3]} 18... cxd5 {[%clk 0:02:31.9]} 19. Rc1 {[%clk 0:02:14.9]} 19... Qb6
{[%clk 0:02:19.1]} 20. Rfe1 {[%clk 0:02:12.2]} 20... Nf6 {[%clk 0:02:17]} 21.
Ne5 {[%clk 0:02:07.6]} 21... Ne4 {[%clk 0:02:13.5]} 22. Qc2 {[%clk 0:01:52.9]}
22... Bxe5 {[%clk 0:02:06.6]} 23. dxe5 {[%clk 0:01:41.5]} 23... Kh7 {[%clk
0:02:04.2]} 24. Ba1 {[%clk 0:01:25.7]} 24... Rac8 {[%clk 0:02:02.1]} 25. Qb2
{[%clk 0:01:25.5]} 25... Rc6 {[%clk 0:01:38.5]} 26. Qd4 {[%clk 0:01:18.2]} 26...
Qxd4 {[%clk 0:01:22.5]} 27. Bxd4 {[%clk 0:01:13.7]} 27... Rec8 {[%clk
0:01:12.3]} 28. Rxc6 {[%clk 0:01:11.2]} 28... Rxc6 {[%clk 0:01:13.2]} 29. f3
{[%clk 0:01:11.2]} 29... Ng3 {[%clk 0:01:09.9]} 30. a4 {[%clk 0:01:01.1]} 30...
b6 {[%clk 0:01:05.4]} 31. a5 {[%clk 0:00:40]} 31... Rc2 {[%clk 0:00:56.5]} 32.
Bf2 {[%clk 0:00:33.8]} 32... Ne2+ {[%clk 0:00:47.6]} 33. Kf1 {[%clk 0:00:32.6]}
33... Nf4 {[%clk 0:00:46.6]} 34. axb6 {[%clk 0:00:31.4]} 34... axb6 {[%clk
0:00:43]} 35. Rd1 {[%clk 0:00:31.7]} 35... Rb2 {[%clk 0:00:28.8]} 36. Rd4 {[%clk
0:00:21]} 36... Rb1+ {[%clk 0:00:19.7]} 37. Be1 {[%clk 0:00:19.4]} 37... Nxg2
{[%clk 0:00:19.9]} 38. Kxg2 {[%clk 0:00:17.9]} 38... Rxe1 {[%clk 0:00:20]} 39.
Rxd5 {[%clk 0:00:18.8]} 39... Re2+ {[%clk 0:00:17.1]} 40. Kg3 {[%clk 0:00:19.1]}
40... Re3 {[%clk 0:00:15.2]} 41. Rb5 {[%clk 0:00:18.9]} 41... g5 {[%clk
0:00:13.3]} 42. Kf2 {[%clk 0:00:18.6]} 42... Rc3 {[%clk 0:00:10]} 43. Rxb6
{[%clk 0:00:19]} 43... Rc2+ {[%clk 0:00:08.4]} 44. Ke3 {[%clk 0:00:18.5]} 44...
Rb2 {[%clk 0:00:04.2]} 45. e6 {[%clk 0:00:18.2]} 45... fxe6 {[%clk 0:00:04]} 46.
Ke4 {[%clk 0:00:18.6]} 46... Kg6 {[%clk 0:00:03.8]} 47. Rxe6+ {[%clk 0:00:18]}
47... Kf7 {[%clk 0:00:04.2]} 48. Rb6 {[%clk 0:00:18.9]} 48... g6 {[%clk
0:00:03.6]} 49. Ke5 {[%clk 0:00:18.4]} 49... Re2+ {[%clk 0:00:03.1]} 50. Kd4
{[%clk 0:00:18.7]} 50... Rd2+ {[%clk 0:00:03.5]} 51. Ke3 {[%clk 0:00:18.3]}
51... Rb2 {[%clk 0:00:03.5]} 52. b4 {[%clk 0:00:18.8]} 52... Rh2 {[%clk
0:00:03.4]} 53. b5 {[%clk 0:00:16.4]} 53... Rxh3 {[%clk 0:00:03.6]} 54. Ke4
{[%clk 0:00:16.4]} 54... Rh1 {[%clk 0:00:03.2]} 55. Rb7+ {[%clk 0:00:16.1]}
55... Kf6 {[%clk 0:00:02.3]} 56. Rb6+ {[%clk 0:00:17]} 56... Kf7 {[%clk
0:00:02.1]} 57. Rb8 {[%clk 0:00:17.1]} 57... Rb1 {[%clk 0:00:01.2]} 58. b6
{[%clk 0:00:16.6]} 58... Kg7 {[%clk 0:00:01.7]} 59. Ke5 {[%clk 0:00:16.4]} 59...
Rb2 {[%clk 0:00:01]} 60. Rb7+ {[%clk 0:00:15.5]} 1-0

[Event "*** Titled Tuesday Blitz"]
[Site "Chess.com"]
[Date "2021.04.20"]
[Round "5"]
[White "Andrii_Prydun"]
[Black "volunteers1998"]
[Result "1/2-1/2"]
[WhiteElo "2328"]
[BlackElo "2181"]
[TimeControl "180+1"]
[EndTime "10:55:51 PDT"]
[Termination "Game drawn - insufficient material"]

1. d4 {[%clk 0:03:00.9]} 1... f5 {[%clk 0:02:58.4]} 2. Nc3 {[%clk 0:03:01.8]}
2... Nf6 {[%clk 0:02:54.5]} 3. Bg5 {[%clk 0:03:02.1]} 3... d5 {[%clk 0:02:53.3]}
4. Bxf6 {[%clk 0:03:00.2]} 4... exf6 {[%clk 0:02:52.2]} 5. e3 {[%clk 0:03:00.3]}
5... c6 {[%clk 0:02:49.4]} 6. Bd3 {[%clk 0:02:59.8]} 6... Bd6 {[%clk 0:02:45.5]}
7. Qf3 {[%clk 0:02:58.8]} 7... g6 {[%clk 0:02:41.2]} 8. O-O-O {[%clk 0:02:57.5]}
8... Na6 {[%clk 0:02:37.4]} 9. h4 {[%clk 0:02:48.6]} 9... Nb4 {[%clk 0:02:34.6]}
10. Be2 {[%clk 0:02:43.4]} 10... Bd7 {[%clk 0:02:31.9]} 11. a3 {[%clk
0:02:36.8]} 11... Na6 {[%clk 0:02:28.3]} 12. Bd3 {[%clk 0:02:35.4]} 12... Qe7
{[%clk 0:02:25.7]} 13. h5 {[%clk 0:02:34.4]} 13... O-O-O {[%clk 0:02:23.5]} 14.
Nge2 {[%clk 0:02:32.3]} 14... Nc7 {[%clk 0:02:20]} 15. hxg6 {[%clk 0:02:30.1]}
15... hxg6 {[%clk 0:02:17.5]} 16. Nf4 {[%clk 0:02:30.1]} 16... Qf7 {[%clk
0:02:08.5]} 17. g3 {[%clk 0:02:16.6]} 17... Rh7 {[%clk 0:01:54.2]} 18. Rxh7
{[%clk 0:02:15]} 18... Qxh7 {[%clk 0:01:54.1]} 19. Rh1 {[%clk 0:02:15.9]} 19...
Qg7 {[%clk 0:01:49.8]} 20. Rh2 {[%clk 0:02:15.8]} 20... Rh8 {[%clk 0:01:45]} 21.
Qh1 {[%clk 0:02:14.9]} 21... Rxh2 {[%clk 0:01:40.8]} 22. Qxh2 {[%clk 0:02:15.8]}
22... Ne6 {[%clk 0:01:33.9]} 23. Nce2 {[%clk 0:02:10.8]} 23... Kc7 {[%clk
0:01:30.7]} 24. Ng1 {[%clk 0:02:07.5]} 24... Nxf4 {[%clk 0:01:21.3]} 25. exf4
{[%clk 0:02:04.5]} 25... b6 {[%clk 0:01:18.6]} 26. Nf3 {[%clk 0:02:03.6]} 26...
g5 {[%clk 0:01:08.9]} 27. Kd2 {[%clk 0:01:22.4]} 27... c5 {[%clk 0:01:05.9]} 28.
c3 {[%clk 0:00:50.6]} 28... c4 {[%clk 0:00:58.2]} 29. Bc2 {[%clk 0:00:42.5]}
29... gxf4 {[%clk 0:00:53.5]} 30. gxf4 {[%clk 0:00:42]} 30... Qg4 {[%clk
0:00:49]} 31. Ke3 {[%clk 0:00:41.9]} 31... b5 {[%clk 0:00:42.4]} 32. Qg3 {[%clk
0:00:41.6]} 32... a5 {[%clk 0:00:35.6]} 33. Nh4 {[%clk 0:00:26.2]} 33... Qxg3+
{[%clk 0:00:32.8]} 34. fxg3 {[%clk 0:00:26]} 34... b4 {[%clk 0:00:31.1]} 35.
axb4 {[%clk 0:00:25.6]} 35... axb4 {[%clk 0:00:30.9]} 36. Bxf5 {[%clk
0:00:24.5]} 36... Be7 {[%clk 0:00:26.6]} 37. Bxd7 {[%clk 0:00:22.6]} 37... Kxd7
{[%clk 0:00:26.5]} 38. Nf5 {[%clk 0:00:22.5]} 38... bxc3 {[%clk 0:00:22.6]} 39.
bxc3 {[%clk 0:00:21.1]} 39... Bd8 {[%clk 0:00:22]} 40. Kd2 {[%clk 0:00:13.9]}
40... Ke6 {[%clk 0:00:20.1]} 41. g4 {[%clk 0:00:10.9]} 41... Bc7 {[%clk
0:00:17.4]} 42. Ke3 {[%clk 0:00:06.6]} 42... Ba5 {[%clk 0:00:17.1]} 43. Kd2
{[%clk 0:00:05.4]} 43... Bc7 {[%clk 0:00:16.7]} 44. Ng7+ {[%clk 0:00:06]} 44...
Kf7 {[%clk 0:00:15.3]} 45. Nh5 {[%clk 0:00:06.9]} 45... Kg6 {[%clk 0:00:15]} 46.
Ke3 {[%clk 0:00:04.8]} 46... Ba5 {[%clk 0:00:12.6]} 47. Kd2 {[%clk 0:00:03.9]}
47... Bc7 {[%clk 0:00:12]} 48. Ke2 {[%clk 0:00:02.7]} 48... f5 {[%clk
0:00:11.6]} 49. Kf3 {[%clk 0:00:02.1]} 49... fxg4+ {[%clk 0:00:10.5]} 50. Kxg4
{[%clk 0:00:03]} 50... Ba5 {[%clk 0:00:09.3]} 51. f5+ {[%clk 0:00:03.9]} 51...
Kf7 {[%clk 0:00:07.9]} 52. Nf4 {[%clk 0:00:03.2]} 52... Bxc3 {[%clk 0:00:08]}
53. Nxd5 {[%clk 0:00:02.2]} 53... Bxd4 {[%clk 0:00:08.2]} 54. Kf4 {[%clk
0:00:02.8]} 54... c3 {[%clk 0:00:07.7]} 55. Nxc3 {[%clk 0:00:01.2]} 55... Bxc3
{[%clk 0:00:06.5]} 56. Ke4 {[%clk 0:00:01.5]} 56... Bf6 {[%clk 0:00:06]} 57. Kf4
{[%clk 0:00:01.8]} 57... Bc3 {[%clk 0:00:04.4]} 58. Ke4 {[%clk 0:00:02.1]} 58...
Bb2 {[%clk 0:00:04.7]} 59. Kf4 {[%clk 0:00:03]} 59... Ba1 {[%clk 0:00:04.6]} 60.
Ke4 {[%clk 0:00:03.9]} 60... Bb2 {[%clk 0:00:04.7]} 61. f6 {[%clk 0:00:04.3]}
61... Ba1 {[%clk 0:00:05.2]} 62. Kf4 {[%clk 0:00:05.2]} 62... Bb2 {[%clk
0:00:05.2]} 63. Ke4 {[%clk 0:00:06.1]} 63... Bxf6 {[%clk 0:00:05.1]} 1/2-1/2

[Event "*** Titled Tuesday Blitz"]
[Site "Chess.com"]
[Date "2021.04.20"]
[Round "5"]
[White "ybruned"]
[Black "MVM2008"]
[Result "0-1"]
[WhiteElo "2316"]
[BlackElo "2160"]
[TimeControl "180+1"]
[EndTime "10:55:51 PDT"]
[Termination "MVM2008 won on time"]

1. b3 {[%clk 0:03:00.9]} 1... e5 {[%clk 0:02:54.7]} 2. Bb2 {[%clk 0:03:00]} 2...
Nc6 {[%clk 0:02:52.9]} 3. e3 {[%clk 0:03:00.6]} 3... d5 {[%clk 0:02:51.9]} 4.
Bb5 {[%clk 0:03:00.8]} 4... f6 {[%clk 0:02:48.2]} 5. f4 {[%clk 0:03:00.5]} 5...
e4 {[%clk 0:02:44.2]} 6. Nc3 {[%clk 0:02:38.2]} 6... a6 {[%clk 0:02:40.5]} 7.
Bxc6+ {[%clk 0:02:08.1]} 7... bxc6 {[%clk 0:02:41.4]} 8. Nge2 {[%clk 0:02:06.2]}
8... Nh6 {[%clk 0:02:34.6]} 9. O-O {[%clk 0:02:05.1]} 9... Bd6 {[%clk
0:02:21.8]} 10. Ng3 {[%clk 0:02:02.6]} 10... Ng4 {[%clk 0:02:16.5]} 11. h3
{[%clk 0:01:41.6]} 11... Nh6 {[%clk 0:01:50.9]} 12. Nce2 {[%clk 0:01:31.1]}
12... Nf5 {[%clk 0:01:38.5]} 13. Nxf5 {[%clk 0:01:15.5]} 13... Bxf5 {[%clk
0:01:39.4]} 14. Nd4 {[%clk 0:01:16]} 14... Bd7 {[%clk 0:01:34.7]} 15. Qh5+
{[%clk 0:01:05.6]} 15... g6 {[%clk 0:01:34.4]} 16. Qh4 {[%clk 0:01:06.2]} 16...
c5 {[%clk 0:01:13.5]} 17. Ne2 {[%clk 0:00:53.6]} 17... Kf7 {[%clk 0:01:03.4]}
18. Rae1 {[%clk 0:00:49]} 18... f5 {[%clk 0:00:55.6]} 19. Qh6 {[%clk 0:00:38.7]}
19... Qf8 {[%clk 0:00:51.5]} 20. Qg5 {[%clk 0:00:35.3]} 20... Be7 {[%clk
0:00:50.7]} 21. Qg3 {[%clk 0:00:35.5]} 21... Bf6 {[%clk 0:00:50.4]} 22. Bxf6
{[%clk 0:00:34]} 22... Kxf6 {[%clk 0:00:51.3]} 23. Qg5+ {[%clk 0:00:34.3]} 23...
Kf7 {[%clk 0:00:49.4]} 24. Nc3 {[%clk 0:00:34.9]} 24... c6 {[%clk 0:00:42.9]}
25. d3 {[%clk 0:00:34.2]} 25... d4 {[%clk 0:00:32.7]} 26. exd4 {[%clk
0:00:30.4]} 26... cxd4 {[%clk 0:00:33.6]} 27. Ne2 {[%clk 0:00:27.2]} 27... Qc5
{[%clk 0:00:25.3]} 28. Kh1 {[%clk 0:00:23.3]} 28... Rae8 {[%clk 0:00:15]} 29.
dxe4 {[%clk 0:00:20.9]} 29... Rxe4 {[%clk 0:00:15.9]} 30. Ng3 {[%clk 0:00:21.2]}
30... Rxe1 {[%clk 0:00:11.7]} 31. Rxe1 {[%clk 0:00:21.8]} 31... Re8 {[%clk
0:00:12.1]} 32. Rxe8 {[%clk 0:00:21.1]} 32... Bxe8 {[%clk 0:00:13]} 33. Qd8
{[%clk 0:00:18.8]} 33... Qxc2 {[%clk 0:00:04]} 34. Qxd4 {[%clk 0:00:17.3]} 34...
Qxa2 {[%clk 0:00:03.6]} 35. Qc4+ {[%clk 0:00:16.8]} 35... Kf8 {[%clk 0:00:03.9]}
36. Kh2 {[%clk 0:00:17.4]} 36... Qd2 {[%clk 0:00:03.3]} 37. Qc5+ {[%clk
0:00:14.8]} 37... Kf7 {[%clk 0:00:03.4]} 38. Qc4+ {[%clk 0:00:14.1]} 38... Kf8
{[%clk 0:00:03.6]} 39. Kh1 {[%clk 0:00:11.5]} 39... Qd5 {[%clk 0:00:03.2]} 40.
Qxa6 {[%clk 0:00:10.2]} 40... Qb5 {[%clk 0:00:03.4]} 41. Qxb5 {[%clk 0:00:09.9]}
41... cxb5 {[%clk 0:00:04.3]} 42. Kg1 {[%clk 0:00:09.6]} 42... Ke7 {[%clk
0:00:04.3]} 43. Kf2 {[%clk 0:00:10.1]} 43... Kd6 {[%clk 0:00:04.8]} 44. Ke3
{[%clk 0:00:10.5]} 44... Kc5 {[%clk 0:00:05.4]} 45. Ne2 {[%clk 0:00:09.9]} 45...
Kb4 {[%clk 0:00:05.7]} 46. Nd4 {[%clk 0:00:10.5]} 46... Bf7 {[%clk 0:00:05.1]}
47. Kd3 {[%clk 0:00:08.2]} 47... Bxb3 {[%clk 0:00:05.2]} 48. Nc6+ {[%clk
0:00:08.8]} 48... Kc5 {[%clk 0:00:05]} 49. Ne5 {[%clk 0:00:09.5]} 49... Bc4+
{[%clk 0:00:04.5]} 50. Kc3 {[%clk 0:00:09.6]} 50... b4+ {[%clk 0:00:03.4]} 51.
Kb2 {[%clk 0:00:09.3]} 51... Bd5 {[%clk 0:00:03.3]} 52. g4 {[%clk 0:00:09.3]}
52... Kd4 {[%clk 0:00:02.8]} 53. gxf5 {[%clk 0:00:07.8]} 53... gxf5 {[%clk
0:00:03.7]} 54. Nf7 {[%clk 0:00:06.2]} 54... Bxf7 {[%clk 0:00:03]} 55. h4 {[%clk
0:00:06.1]} 55... Ke4 {[%clk 0:00:03.9]} 56. h5 {[%clk 0:00:07]} 56... Kxf4
{[%clk 0:00:04.8]} 0-1